bitfinex/quotes_BTCUSD_20241120
["timestamp","ask_amount","ask_price","bid_price","bid_amount"]
[1732072322519,0.0008537,91565.0,91553.0,0.023]
[1732072327119,0.0008537,91565.0,91554.0,0.00184974]
[1732072327366,0.0008537,91565.0,91557.0,0.023]
[1732072327574,0.0008537,91565.0,91558.0,0.00184943]
[1732072329137,0.0008537,91565.0,91559.0,0.1396395]
[1732072329380,0.0008537,91565.0,91562.0,0.023]
[1732072329607,0.0008537,91565.0,91564.0,0.023]
[1732072331003,0.0008535,91566.0,91564.0,0.023]
[1732072332692,0.0008535,91566.0,91565.0,0.00184901]
[1732072333151,0.0008535,91566.0,91562.0,0.023]
[1732072333601,0.0008535,91566.0,91562.0,0.123]
[1732072334035,0.0008535,91566.0,91559.0,0.03608904]
[1732072334478,0.0008535,91566.0,91557.0,0.1]
[1732072334919,0.0008535,91566.0,91557.0,0.03494274]
[1732072335372,0.0008535,91566.0,91552.0,0.033]
[1732072336546,0.0008535,91566.0,91552.0,0.023]
[1732072336972,0.0008535,91566.0,91552.0,0.05929312]
[1732072337189,0.0008535,91566.0,91552.0,0.023]
[1732072339256,0.0008535,91566.0,91551.0,0.03577073]
[1732072339571,0.00242305,91561.0,91551.0,0.03577073]
[1732072339742,0.00242305,91561.0,91530.0,0.0832]
[1732072339743,0.1114856,91561.0,91530.0,0.0832]
[1732072339959,0.00437347,91560.0,91533.0,0.10906255]
[1732072340195,0.00437347,91560.0,91534.0,0.00185107]
[1732072340418,0.00437347,91560.0,91538.0,0.01]
[1732072340721,0.00164289,91560.0,91539.0,0.11185069]
[1732072341182,0.1233,91564.0,91539.0,0.11]
[1732072341427,0.1233,91564.0,91541.0,0.09764586]
[1732072341656,0.1233,91564.0,91544.0,0.09764586]
[1732072341870,0.1233,91564.0,91545.0,0.00185069]
[1732072342480,0.0008535,91566.0,91548.0,0.22064586]
[1732072342747,0.0008535,91566.0,91550.0,0.03057695]
[1732072342910,0.0008535,91566.0,91551.0,0.10906255]
[1732072343119,0.0008535,91566.0,91552.0,0.123]
[1732072344448,0.0008535,91566.0,91553.0,0.09764586]
[1732072344805,0.0008535,91566.0,91554.0,0.123]
[1732072345018,0.0008535,91566.0,91555.0,0.00184977]
[1732072345404,0.0008535,91566.0,91555.0,0.19949563]
[1732072345916,0.0008535,91566.0,91557.0,0.09764586]
[1732072346039,0.0008535,91566.0,91558.0,0.00184974]
[1732072346246,0.0008535,91566.0,91559.0,0.09764586]
[1732072346453,0.0008535,91566.0,91560.0,0.09764586]
[1732072346659,0.0008535,91566.0,91563.0,0.09764586]
[1732072346862,0.0008535,91566.0,91564.0,0.09949563]
[1732072347090,0.0008535,91566.0,91564.0,0.19949563]
[1732072347288,0.0008535,91566.0,91564.0,0.24865283]
[1732072347539,0.0008535,91566.0,91565.0,0.19786756]
[1732072348197,0.0008535,91566.0,91565.0,0.1]
[1732072349253,0.0008535,91566.0,91564.0,0.09787304]
[1732072349490,0.0008535,91566.0,91565.0,0.09787304]
[1732072350115,0.0008535,91566.0,91564.0,0.10184977]
[1732072350116,0.0008535,91566.0,91564.0,0.24865283]
[1732072350322,0.0008535,91566.0,91564.0,0.1]
[1732072350548,0.0008535,91566.0,91564.0,0.10184977]
[1732072350680,0.0008535,91566.0,91565.0,0.023]
[1732072351661,0.0008535,91566.0,91564.0,0.00184977]
[1732072351662,0.0008535,91566.0,91564.0,0.24467038]
[1732072351915,0.0008535,91566.0,91565.0,0.1]
[1732072352099,0.0008535,91566.0,91565.0,0.29573895]
[1732072352336,0.0008535,91566.0,91565.0,0.1]
[1732072352980,0.0008535,91566.0,91565.0,0.34467038]
[1732072353196,0.03,91570.0,91565.0,0.24465865]
[1732072353408,0.03,91570.0,91569.0,0.24679348]
[1732072353614,0.03,91570.0,91569.0,0.1]
[1732072354781,0.03,91570.0,91569.0,0.24679564]
[1732072354986,0.03,91570.0,91569.0,0.24679667]
[1732072355619,0.0004,91579.0,91570.0,0.1]
[1732072355842,0.0004,91579.0,91572.0,0.09786344]
[1732072356029,0.0004,91579.0,91570.0,0.19786344]
[1732072356200,0.0004,91579.0,91571.0,0.00184907]
[1732072356591,0.0004,91579.0,91571.0,0.09971251]
[1732072356789,0.0004,91579.0,91572.0,0.09786472]
[1732072357014,0.0004,91579.0,91573.0,0.19786472]
[1732072357223,0.0004,91579.0,91573.0,0.1]
[1732072357686,0.0004,91579.0,91573.0,0.19786165]
[1732072358132,0.0004,91579.0,91574.0,0.09785979]
[1732072358332,0.0004,91579.0,91572.0,0.1]
[1732072358580,0.0004,91579.0,91570.0,0.09786173]
[1732072358756,0.0004,91579.0,91570.0,0.03610022]
[1732072359187,0.0004,91579.0,91561.0,0.19572944]
[1732072359188,0.0004,91579.0,91561.0,0.023]
[1732072359366,0.0004,91579.0,91561.0,0.13206255]
[1732072360111,0.0004,91579.0,91563.0,0.03057695]
[1732072360277,0.0004,91579.0,91561.0,0.023]
[1732072360278,0.0004,91579.0,91568.0,0.023]
[1732072360482,0.0004,91579.0,91569.0,0.00184881]
[1732072360698,0.000853,91575.0,91569.0,0.00184881]
[1732072361532,0.000853,91575.0,91569.0,0.10184881]
[1732072364927,0.000853,91575.0,91572.0,0.00757695]
[1732072365138,0.000853,91575.0,91574.0,0.1]
[1732072365362,0.000853,91575.0,91574.0,0.123]
[1732072365589,5.931e-05,91579.0,91574.0,0.123]
[1732072365881,5.931e-05,91579.0,91575.0,0.023]
[1732072366102,5.931e-05,91579.0,91575.0,0.0248485]
[1732072366921,0.03,91587.0,91577.0,0.123]
[1732072367147,0.0008542,91588.0,91575.0,0.0248485]
[1732072367148,0.0308541,91586.0,91583.0,0.023]
[1732072367349,0.0308541,91586.0,91585.0,0.023]
[1732072368901,0.0308541,91586.0,91585.0,0.31868669]
[1732072369363,0.0308541,91586.0,91585.0,0.123]
[1732072370060,0.0308541,91586.0,91585.0,0.26964411]
[1732072370274,0.0308541,91586.0,91585.0,0.023]
[1732072370482,0.0308541,91586.0,91585.0,0.02484809]
[1732072370694,0.0308541,91586.0,91585.0,0.023]
[1732072370903,0.0308541,91586.0,91585.0,0.123]
[1732072371109,0.0308541,91586.0,91585.0,0.26961263]
[1732072371294,0.0308541,91586.0,91585.0,0.123]
[1732072372325,0.0008542,91588.0,91585.0,0.123]
[1732072372326,0.0008542,91588.0,91587.0,0.03]
[1732072372500,0.0008542,91588.0,91587.0,0.03184781]
[1732072373851,0.0008542,91588.0,91587.0,0.03]
[1732072374071,0.1134752,91588.0,91587.0,0.03]
[1732072374467,0.11510543,91588.0,91587.0,0.03]
[1732072376872,0.11510543,91588.0,91586.0,0.03]
[1732072377618,0.11510543,91588.0,91587.0,0.03]
[1732072378679,0.11510543,91588.0,91576.0,0.03]
[1732072378800,0.11510543,91588.0,91577.0,0.0018485]
[1732072380509,0.11500959,91588.0,91577.0,0.0018485]
[1732072380984,0.11500959,91588.0,91579.0,0.03]
[1732072381160,0.11500959,91588.0,91580.0,0.0018485]
[1732072382423,0.03200959,91588.0,91581.0,0.00184847]
[1732072382827,0.00200959,91588.0,91581.0,0.00184847]
[1732072383390,0.00037936,91588.0,91582.0,0.0018484]
[1732072383768,0.00037936,91588.0,91577.0,0.00184842]
[1732072385071,0.00037936,91588.0,91578.0,0.03]
[1732072385472,0.00037936,91588.0,91579.0,0.0017058]
[1732072386132,0.00037936,91588.0,91579.0,0.0317058]
[1732072386980,0.00037936,91588.0,91580.0,0.00184828]
[1732072387216,0.00037936,91588.0,91580.0,0.03184828]
[1732072387450,0.00037936,91588.0,91580.0,0.13184828]
[1732072388643,0.00037936,91588.0,91581.0,0.03]
[1732072388875,0.00037936,91588.0,91582.0,0.0018483]
[1732072389333,0.000854,91589.0,91583.0,0.03]
[1732072389503,0.000854,91589.0,91585.0,0.03]
[1732072389719,0.000854,91589.0,91586.0,0.00184808]
[1732072389967,0.03,91593.0,91586.0,0.00184808]
[1732072389968,0.00161573,91588.0,91586.0,0.00184808]
[1732072390215,0.03,91593.0,91586.0,0.00184808]
[1732072390445,0.03,91593.0,91587.0,0.03]
[1732072390687,0.0008542,91594.0,91589.0,0.03]
[1732072390688,0.03,91592.0,91589.0,0.03]
[1732072390908,0.03,91592.0,91590.0,0.00184779]
[1732072391851,0.0008542,91594.0,91590.0,0.00184779]
[1732072393561,0.0008542,91594.0,91592.0,0.03]
[1732072393771,0.0008542,91594.0,91592.0,0.03184746]
[1732072394681,0.0008537,91595.0,91592.0,0.03184746]
[1732072395917,0.03,91603.0,91592.0,0.03184746]
[1732072395918,0.03,91602.0,91594.0,0.153]
[1732072396135,0.03,91602.0,91596.0,0.023]
[1732072396393,0.03,91602.0,91597.0,0.001847]
[1732072396630,0.03,91602.0,91597.0,0.031847]
[1732072396855,0.0008537,91610.0,91597.0,0.03]
[1732072397329,0.0016373,91609.0,91597.0,0.03]
[1732072398686,0.0008537,91610.0,91597.0,0.03]
[1732072398906,0.0008537,91610.0,91598.0,0.00184693]
[1732072399358,0.0008537,91610.0,91599.0,0.153]
[1732072399579,0.0008537,91610.0,91602.0,0.03]
[1732072399815,0.0008537,91610.0,91603.0,0.00184668]
[1732072400624,0.0008537,91610.0,91603.0,0.03184668]
[1732072401601,0.0008537,91610.0,91603.0,0.00184668]
[1732072401861,0.0008537,91610.0,91604.0,0.0318467]
[1732072403033,0.0196875,91612.0,91605.0,0.10906255]
[1732072403290,0.0004,91619.0,91605.0,0.10906255]
[1732072403291,0.0004,91619.0,91618.0,0.03757695]
[1732072403564,0.03,91635.0,91620.0,0.03]
[1732072404006,0.03,91635.0,91621.0,0.00184529]
[1732072404248,0.0004,91639.0,91621.0,0.00184529]
[1732072404249,0.03,91634.0,91621.0,0.00184529]
[1732072405168,0.03,91633.0,91620.0,0.03]
[1732072405936,0.03,91633.0,91626.0,0.03]
[1732072406183,0.0004,91639.0,91634.0,0.03]
[1732072406407,0.0004,91639.0,91635.0,0.00184403]
[1732072406654,0.0004,91639.0,91636.0,0.03]
[1732072406972,0.0004,91639.0,91636.0,0.03184403]
[1732072407182,0.0004,91639.0,91638.0,0.153]
[1732072407491,0.00272755,91676.0,91652.0,0.053]
[1732072407661,0.0004,91679.0,91651.0,0.00757695]
[1732072407662,0.0004,91679.0,91659.0,0.023]
[1732072407875,0.0004,91679.0,91670.0,0.03]
[1732072408109,0.0004,91679.0,91674.0,0.03]
[1732072408334,0.00243936,91679.0,91674.0,0.03]
[1732072408579,0.0004,91679.0,91675.0,0.03652192]
[1732072408802,0.0004,91679.0,91676.0,0.03]
[1732072409285,0.0004,91679.0,91678.0,0.03]
[1732072409743,0.0004,91679.0,91678.0,0.09762031]
[1732072410422,0.0004,91679.0,91678.0,0.06652192]
[1732072412102,0.0004,91679.0,91672.0,0.1]
[1732072412377,0.0004,91679.0,91678.0,0.03]
[1732072413066,0.0008528,91685.0,91678.0,0.03]
[1732072413361,0.0008528,91685.0,91673.0,0.03]
[1732072413535,0.0008528,91685.0,91675.0,0.03757695]
[1732072413801,0.0008528,91685.0,91678.0,0.03]
[1732072414028,0.0008528,91685.0,91680.0,0.03]
[1732072415432,0.0008528,91686.0,91680.0,0.03]
[1732072416153,0.0008528,91686.0,91677.0,0.01]
[1732072416154,0.0008528,91686.0,91682.0,0.03]
[1732072416392,0.00834173,91697.0,91691.0,0.03]
[1732072417324,0.0004,91699.0,91693.0,0.03]
[1732072418515,0.0004,91699.0,91696.0,0.03]
[1732072419213,0.0004,91699.0,91698.0,0.04]
[1732072420339,0.0004,91699.0,91698.0,0.03]
[1732072420569,0.09114173,91699.0,91698.0,0.03]
[1732072421028,0.09297395,91699.0,91698.0,0.03]
[1732072422186,0.095397,91699.0,91698.0,0.03]
[1732072422892,0.143697,91699.0,91698.0,0.03]
[1732072423412,0.143697,91699.0,91694.0,0.03]
[1732072423650,0.00442305,91695.0,91694.0,0.03]
[1732072423893,0.12182733,91695.0,91694.0,0.03]
[1732072424132,0.12167597,91695.0,91694.0,0.03]
[1732072424799,0.01019037,91695.0,91694.0,0.03]
[1732072425247,0.00427169,91695.0,91694.0,0.03]
[1732072427897,0.00184864,91695.0,91694.0,0.03]
[1732072428173,0.00427169,91695.0,91694.0,0.03]
[1732072428410,0.00242305,91695.0,91694.0,0.03]
[1732072428634,0.00426164,91695.0,91694.0,0.03]
[1732072430757,0.00626164,91695.0,91694.0,0.03]
[1732072431510,0.25279241,91695.0,91694.0,0.03]
[1732072431722,0.26006592,91695.0,91694.0,0.03]
[1732072431958,0.25006592,91695.0,91694.0,0.03]
[1732072432216,0.25091892,91695.0,91694.0,0.03]
[1732072432705,0.25091892,91695.0,91694.0,0.028]
[1732072432706,0.24891892,91695.0,91694.0,0.028]
[1732072437911,0.24649587,91695.0,91694.0,0.028]
[1732072438097,0.24891892,91695.0,91694.0,0.028]
[1732072438211,0.24891892,91695.0,91685.0,0.028]
[1732072438212,0.24649587,91695.0,91685.0,0.028]
[1732072438473,0.00834173,91693.0,91685.0,0.028]
[1732072438679,0.00834173,91691.0,91685.0,0.028]
[1732072438884,0.11178937,91692.0,91685.0,0.028]
[1732072438885,0.00834173,91689.0,91685.0,0.028]
[1732072439087,0.10906255,91690.0,91685.0,0.028]
[1732072439088,0.00834173,91687.0,91685.0,0.028]
[1732072439496,0.00180844,91686.0,91685.0,0.028]
[1732072440149,0.00423149,91686.0,91685.0,0.028]
[1732072442903,0.09430003,91686.0,91685.0,0.028]
[1732072443318,0.09157322,91686.0,91685.0,0.028]
[1732072444386,0.01015017,91686.0,91685.0,0.029706]
[1732072444640,0.01015017,91686.0,91685.0,0.06162814]
[1732072444857,0.00834173,91686.0,91685.0,0.029706]
[1732072445141,0.00834173,91686.0,91685.0,0.04353049]
[1732072445306,0.08227605,91695.0,91685.0,0.04353049]
[1732072445307,0.00327605,91695.0,91685.0,0.04353049]
[1732072445528,0.00327605,91695.0,91687.0,0.028]
[1732072445764,0.00327605,91695.0,91686.0,0.01382449]
[1732072445765,0.00181174,91694.0,91689.0,0.028]
[1732072445979,0.00181174,91694.0,91691.0,0.028]
[1732072446237,0.00327605,91695.0,91691.0,0.028]
[1732072446901,0.00180227,91694.0,91691.0,0.028]
[1732072447115,0.00180227,91694.0,91692.0,0.028]
[1732072447338,0.00327605,91695.0,91692.0,0.028]
[1732072447744,0.00180227,91694.0,91692.0,0.028]
[1732072448158,0.00327605,91695.0,91693.0,0.028]
[1732072448578,0.00180227,91694.0,91693.0,0.028]
[1732072449000,0.00327605,91695.0,91693.0,0.028]
[1732072449218,0.00327605,91695.0,91685.0,0.001706]
[1732072449219,0.00242305,91689.0,91685.0,0.001706]
[1732072449640,0.00179859,91688.0,91685.0,0.001706]
[1732072450559,0.00179859,91688.0,91685.0,0.03730328]
[1732072450778,0.00179859,91688.0,91686.0,0.028]
[1732072451622,0.00179859,91688.0,91687.0,0.028]
[1732072453744,0.00179859,91688.0,91685.0,0.03733168]
[1732072453745,0.00179859,91688.0,91686.0,0.028]
[1732072454031,0.00179859,91688.0,91685.0,0.03733168]
[1732072454032,0.00179859,91688.0,91687.0,0.028]
[1732072456859,0.00179859,91688.0,91686.0,0.028]
[1732072458528,0.2346123,91687.0,91686.0,0.028]
[1732072458727,0.2346123,91687.0,91685.0,0.001706]
[1732072458728,0.01242305,91686.0,91685.0,0.001706]
[1732072458957,0.60069398,91686.0,91685.0,0.001706]
[1732072459219,0.60308043,91686.0,91685.0,0.001706]
[1732072459456,0.79740293,91686.0,91685.0,0.001706]
[1732072459688,0.80740293,91686.0,91685.0,0.001706]
[1732072459936,0.61308043,91686.0,91685.0,0.001706]
[1732072460201,0.00242305,91652.0,91644.0,0.01293771]
[1732072460397,0.00242305,91652.0,91645.0,0.03]
[1732072460398,0.00242305,91646.0,91645.0,0.03]
[1732072460647,0.00272796,91647.0,91645.0,0.02757695]
[1732072462101,0.10906255,91646.0,91645.0,0.02757695]
[1732072462524,0.12906255,91646.0,91611.0,0.12496411]
[1732072462710,0.12906255,91646.0,91611.0,0.02757695]
[1732072462711,0.01,91643.0,91611.0,0.02757695]
[1732072462924,0.18679107,91642.0,91611.0,0.00757695]
[1732072463155,0.18679107,91642.0,91602.0,0.01]
[1732072463343,0.18679107,91642.0,91603.0,0.10906255]
[1732072463778,0.18679107,91642.0,91604.0,0.123]
[1732072463988,0.18679107,91642.0,91604.0,0.13206255]
[1732072464275,0.18679107,91642.0,91602.0,0.04542381]
[1732072464276,0.18679107,91642.0,91606.0,0.023]
[1732072464424,0.18679107,91642.0,91608.0,0.123]
[1732072464635,0.18679107,91642.0,91609.0,0.01374967]
[1732072464853,0.18679107,91642.0,91608.0,0.123]
[1732072464854,0.18679107,91642.0,91610.0,0.023]
[1732072465085,0.18679107,91642.0,91609.0,0.023]
[1732072467337,0.18679107,91642.0,91611.0,0.001706]
[1732072471349,0.01,91615.0,91611.0,0.001706]
[1732072471574,0.23639183,91614.0,91611.0,0.001706]
[1732072471794,0.23366255,91614.0,91611.0,0.001706]
[1732072472968,0.00272921,91613.0,91611.0,0.001706]
[1732072473186,0.10906255,91612.0,91611.0,0.001706]
[1732072474128,0.1246,91628.0,91611.0,0.001706]
[1732072474355,0.11179147,91627.0,91611.0,0.001706]
[1732072476947,0.01,91626.0,91611.0,0.001706]
[1732072477202,0.11179134,91625.0,91611.0,0.001706]
[1732072480032,0.00272874,91624.0,91611.0,0.001706]
[1732072481095,0.01,91638.0,91611.0,0.001706]
[1732072481096,0.0471,91639.0,91611.0,0.001706]
[1732072481304,0.19189116,91638.0,91611.0,0.001706]
[1732072482768,0.19189116,91638.0,91611.0,0.047606]
[1732072483643,0.01,91630.0,91605.0,0.023]
[1732072483862,0.19189116,91638.0,91605.0,0.023]
[1732072483863,0.01,91627.0,91605.0,0.023]
[1732072485599,0.01,91627.0,91605.0,0.123]
[1732072486028,0.01,91630.0,91605.0,0.123]
[1732072486721,0.01,91630.0,91606.0,0.10906255]
[1732072486921,0.01,91630.0,91607.0,0.123]
[1732072487139,0.01,91630.0,91609.0,0.023]
[1732072489740,0.1272,91629.0,91609.0,0.023]
[1732072491424,0.1272,91629.0,91609.0,0.0247074]
[1732072492073,0.1263,91629.0,91609.0,0.0247074]
[1732072492881,0.1254,91629.0,91609.0,0.0247074]
[1732072497072,0.01,91621.0,91609.0,0.0017074]
[1732072497219,0.01,91612.0,91609.0,0.0017074]
[1732072497443,0.27270404,91620.0,91609.0,0.0017074]
[1732072497444,0.01,91610.0,91609.0,0.0017074]
[1732072497707,0.01,91598.0,91597.0,0.0017076]
[1732072498122,0.01,91598.0,91597.0,0.03806194]
[1732072498333,0.01,91598.0,91597.0,0.0017076]
[1732072501609,0.0571,91598.0,91597.0,0.0017076]
[1732072502060,0.24626255,91598.0,91597.0,0.0017076]
[1732072502382,0.24626255,91598.0,91594.0,0.03794156]
[1732072502383,0.119176,91595.0,91594.0,0.001708]
[1732072502555,0.49568598,91595.0,91594.0,0.001708]
[1732072502689,0.75566127,91595.0,91594.0,0.001708]
[1732072503390,0.99708039,91595.0,91594.0,0.001708]
[1732072503565,0.9488971,91595.0,91594.0,0.001708]
[1732072504001,0.36543855,91595.0,91594.0,0.001708]
[1732072504214,0.51037144,91595.0,91594.0,0.001708]
[1732072504448,0.36543855,91595.0,91594.0,0.001708]
[1732072504665,0.72225341,91595.0,91594.0,0.001708]
[1732072504893,0.51043114,91595.0,91594.0,0.001708]
[1732072505433,0.72240519,91595.0,91594.0,0.001708]
[1732072505698,0.75598176,91595.0,91594.0,0.001708]
[1732072506186,0.75598176,91595.0,91593.0,0.001708]
[1732072506187,0.01,91594.0,91593.0,0.00069925]
[1732072506492,0.62151276,91594.0,91593.0,0.00069925]
[1732072506717,0.61878276,91594.0,91593.0,0.00069925]
[1732072506968,0.62878276,91594.0,91593.0,0.00069925]
[1732072507540,0.23823955,91594.0,91593.0,0.00069925]
[1732072507962,0.75583194,91594.0,91593.0,0.00069925]
[1732072508197,0.76583194,91594.0,91593.0,0.00069925]
[1732072508429,0.256385,91587.0,91586.0,0.0017038]
[1732072508719,0.73227961,91587.0,91586.0,0.0017038]
[1732072508927,0.76582443,91587.0,91586.0,0.0017038]
[1732072509446,0.139191,91582.0,91535.0,0.0785]
[1732072509700,0.37298429,91582.0,91535.0,0.0785]
[1732072509912,0.40377886,91582.0,91535.0,0.0785]
[1732072510176,0.03,91580.0,91519.0,0.001708]
[1732072510418,0.3614877,91580.0,91522.0,0.0814]
[1732072510682,0.03,91566.0,91522.0,0.0814]
[1732072510876,0.46678795,91566.0,91522.0,0.0814]
[1732072511104,0.46678795,91566.0,91538.0,0.03510869]
[1732072511105,0.72659761,91566.0,91538.0,0.03510869]
[1732072511375,0.91953998,91566.0,91538.0,0.03510869]
[1732072511819,0.37027255,91566.0,91538.0,0.03510869]
[1732072512066,0.46673514,91566.0,91538.0,0.03510869]
[1732072512318,0.01,91553.0,91538.0,0.03510869]
[1732072512537,0.12179372,91553.0,91538.0,0.03510869]
[1732072512817,0.10906255,91552.0,91536.0,0.1]
[1732072513080,0.0027312,91551.0,91536.0,0.03626749]
[1732072513282,0.10906255,91550.0,91536.0,0.03626749]
[1732072513525,0.10906255,91550.0,91519.0,0.001708]
[1732072513526,0.00273122,91549.0,91519.0,0.001708]
[1732072513769,0.01,91548.0,91537.0,0.0593755]
[1732072513996,0.01,91548.0,91536.0,0.1]
[1732072514956,0.01,91548.0,91535.0,0.0814]
[1732072515192,0.01,91548.0,91536.0,0.1]
[1732072515430,0.01,91548.0,91536.0,0.0008538]
[1732072515664,0.01,91548.0,91536.0,0.1008538]
[1732072515969,0.01,91548.0,91536.0,0.0008538]
[1732072520563,0.01,91554.0,91537.0,0.01655219]
[1732072520795,0.00273093,91565.0,91537.0,0.01655219]
[1732072520796,0.01,91563.0,91537.0,0.01655219]
[1732072521053,0.01,91563.0,91539.0,0.1]
[1732072521338,0.01,91563.0,91539.0,0.20906255]
[1732072526944,0.01,91567.0,91540.0,0.10906255]
[1732072527184,0.0017084,91563.0,91542.0,0.002]
[1732072527414,0.0017084,91563.0,91547.0,0.023]
[1732072527643,0.0017084,91563.0,91550.0,0.1299]
[1732072527857,0.0017084,91563.0,91551.0,0.11384621]
[1732072528071,0.0017084,91563.0,91550.0,0.23896255]
[1732072528072,1e-07,91563.0,91553.0,0.123]
[1732072528284,0.0757,91582.0,91555.0,0.123]
[1732072528508,0.0586,91586.0,91555.0,0.123]
[1732072528509,0.0586,91586.0,91557.0,0.1]
[1732072528722,0.01,91583.0,91559.0,0.1]
[1732072528934,0.01,91583.0,91560.0,0.01384621]
[1732072529356,0.01,91583.0,91561.0,0.01384621]
[1732072529594,0.01,91583.0,91562.0,0.01384621]
[1732072529813,0.01,91583.0,91563.0,0.01384621]
[1732072530043,0.01,91583.0,91559.0,0.20906255]
[1732072530044,0.01,91583.0,91564.0,0.01384621]
[1732072530251,0.01,91583.0,91565.0,0.09464621]
[1732072530496,0.1243,91594.0,91566.0,0.11384621]
[1732072530497,0.1343,91594.0,91566.0,0.11384621]
[1732072530748,0.00272969,91593.0,91567.0,0.01384621]
[1732072530955,0.0486,91594.0,91568.0,0.13684621]
[1732072531201,0.00272949,91593.0,91570.0,0.1]
[1732072531399,0.00272949,91593.0,91571.0,0.01384621]
[1732072531676,0.00272949,91593.0,91570.0,0.20906255]
[1732072531677,0.00272949,91593.0,91572.0,0.01384621]
[1732072531882,0.00272949,91593.0,91570.0,0.20090876]
[1732072532108,0.01272955,91594.0,91570.0,0.20090876]
[1732072532368,0.01,91594.0,91570.0,0.20090876]
[1732072532588,0.01272955,91596.0,91570.0,0.20090876]
[1732072533001,0.0486,91597.0,91572.0,0.023]
[1732072533217,0.0586,91597.0,91573.0,0.10906255]
[1732072534068,0.0586,91597.0,91574.0,0.1]
[1732072534348,0.01,91592.0,91591.0,0.010918]
[1732072535217,0.11906255,91592.0,91591.0,0.010918]
[1732072535500,0.24336255,91592.0,91591.0,0.010918]
[1732072538847,0.24336255,91592.0,91586.0,0.010918]
[1732072539085,0.1343,91592.0,91591.0,0.010918]
[1732072540490,0.1343,91592.0,91580.0,0.010919]
[1732072540491,0.01,91581.0,91580.0,0.010919]
[1732072540731,0.19746255,91581.0,91576.0,0.010919]
[1732072540945,0.10906255,91580.0,91579.0,0.010919]
[1732072541189,0.11179271,91580.0,91579.0,0.010919]
[1732072542199,0.11179271,91580.0,91570.0,0.04569308]
[1732072542200,0.01,91571.0,91570.0,0.04569308]
[1732072542600,0.36196655,91571.0,91570.0,0.0008541]
[1732072542687,0.1337,91552.0,91551.0,0.010922]
[1732072542917,0.1337,91552.0,91537.0,0.010924]
[1732072542918,0.24276255,91552.0,91537.0,0.010924]
[1732072543186,0.24276255,91552.0,91550.0,0.010922]
[1732072543187,0.11179376,91551.0,91550.0,0.010922]
[1732072543667,0.109232,91548.0,91538.0,0.010924]
[1732072543921,0.352155,91552.0,91536.0,0.0008538]
[1732072543922,0.11179375,91547.0,91543.0,0.010923]
[1732072544153,0.09695374,91546.0,91543.0,0.010923]
[1732072544401,0.11179374,91545.0,91543.0,0.010923]
[1732072544666,0.11179374,91545.0,91544.0,0.010923]
[1732072547860,0.11179374,91545.0,91544.0,0.05593338]
[1732072548334,0.11179374,91545.0,91544.0,0.010923]
[1732072548584,0.1337,91552.0,91546.0,0.010923]
[1732072548585,0.01,91547.0,91546.0,0.010923]
[1732072554191,0.00273095,91560.0,91546.0,0.010923]
[1732072554192,0.01,91551.0,91550.0,0.010922]
[1732072560578,0.01,91554.0,91553.0,0.010922]
[1732072560817,0.0453,91563.0,91553.0,0.010922]
[1732072560818,0.01,91560.0,91557.0,0.010922]
[1732072561069,0.0787,91569.0,91555.0,0.010922]
[1732072561070,0.01273051,91568.0,91567.0,0.01092]
[1732072561370,0.12179306,91568.0,91567.0,0.01092]
[1732072561910,0.01,91568.0,91567.0,0.01092]
[1732072562408,0.01,91571.0,91570.0,0.01092]
[1732072562562,0.00273037,91579.0,91570.0,0.01092]
[1732072562563,0.01,91573.0,91572.0,0.01092]
[1732072563029,0.01,91575.0,91574.0,0.01092]
[1732072564515,0.01,91571.0,91570.0,0.05588912]
[1732072564622,0.01,91571.0,91555.0,0.1]
[1732072564623,0.01,91562.0,91561.0,0.010921]
[1732072564841,0.01273054,91562.0,91561.0,0.010921]
[1732072565958,0.01,91559.0,91558.0,0.010921]
[1732072566187,0.01,91559.0,91556.0,0.010922]
[1732072566188,0.01,91557.0,91556.0,0.010922]
[1732072566384,0.12179328,91557.0,91556.0,0.010922]
[1732072566651,0.01,91551.0,91550.0,0.010922]
[1732072566819,0.01,91551.0,91536.0,0.0008538]
[1732072566820,0.01,91545.0,91544.0,0.0117767]
[1732072567026,0.11906255,91545.0,91544.0,0.0117767]
[1732072567953,0.01,91545.0,91544.0,0.0117767]
[1732072572719,0.11906255,91545.0,91544.0,0.0117767]
[1732072572984,0.11906255,91545.0,91544.0,0.0008537]
[1732072572985,0.35819755,91545.0,91544.0,0.0008537]
[1732072573746,0.35819755,91545.0,91536.0,0.0008538]
[1732072573747,0.02,91537.0,91536.0,0.0008538]
[1732072573978,0.38093949,91537.0,91536.0,0.0008538]
[1732072574232,0.02,91532.0,91519.0,0.001708]
[1732072574456,0.24831355,91532.0,91519.0,0.001708]
[1732072574686,0.76935063,91532.0,91519.0,0.001708]
[1732072574911,0.96329189,91532.0,91519.0,0.001708]
[1732072575156,0.76935807,91532.0,91519.0,0.001708]
[1732072575389,0.96329189,91532.0,91519.0,0.001708]
[1732072575622,0.41191865,91532.0,91519.0,0.001708]
[1732072575851,0.55713913,91532.0,91519.0,0.001708]
[1732072576105,0.41191865,91532.0,91519.0,0.001708]
[1732072576398,0.37821355,91532.0,91519.0,0.001708]
[1732072576652,0.37821355,91532.0,91523.0,0.010926]
[1732072577086,0.37821355,91532.0,91528.0,0.010925]
[1732072577087,0.25896255,91532.0,91528.0,0.010925]
[1732072577365,0.24896255,91532.0,91531.0,0.011325]
[1732072577554,0.16586255,91532.0,91531.0,0.011325]
[1732072577783,0.12179415,91532.0,91531.0,0.011325]
[1732072579009,0.11906255,91532.0,91531.0,0.011325]
[1732072579474,0.35743534,91533.0,91532.0,0.010925]
[1732072580512,0.35743534,91533.0,91532.0,0.087025]
[1732072580768,0.24818534,91533.0,91532.0,0.29608755]
[1732072581008,0.01,91568.0,91534.0,0.01]
[1732072581211,0.0088,91568.0,91567.0,0.01092]
[1732072581725,0.00273031,91572.0,91571.0,0.01092]